[Event "7th Fischer Memorial GM 2019"]
[Site "Anogia"]
[Date "2019.09.17"]
[Round "7.2"]
[White "Storey, Charles H"]
[Black "Akash Pc, Iyer"]
[Result "0-1"]
[ECO "E73"]
[WhiteElo "2282"]
[BlackElo "2431"]
[Annotator "ChessBase"]
[PlyCount "80"]
[EventDate "2019.09.11"]
[EventType "tourn"]
[EventCountry "GRE"]
[SourceTitle "playchess.com"]
[Source "ChessBase"]
[SourceQuality "1"]
[TimeControl "40/5400+30:1800+30"]

1. d4 {[%emt 0:00:00]} Nf6 {[%emt 0:01:07]} 2. c4 {[%emt 0:00:00]} g6 {[%emt 0:00:33]} 3. Nc3 {[%emt 0:00:00]} Bg7 {[%emt 0:00:10]} 4. e4 {[%emt 0:00:00]} d6 {[%emt 0:00:07]} 5. Be2 {[%emt 0:00:06]} O-O {[%emt 0:00:42]} 6. Be3 {[%emt 0:00:06]} e5 {[%emt 0:02:05]} 7. d5 {[%emt 0:01:40]} Na6 {[%emt 0:04:01]} 8. g4 {[%emt 0:05:02]} Nc5 {[%emt 0:00:13]} 9. Bf3 {[%emt 0:00:58]} Qe7 {[%emt 0:11:20]} 10. h4 {[%emt 0:01:09]} c6 {[%emt 0:01:28]} 11. h5 {[%emt 0:03:17]} cxd5 {[%emt 0:00:58]} 12. cxd5 {[%emt 0:03:27]} a5 {[%emt 0:03:15]} 13. Bxc5 {[%emt 0:03:50]} dxc5 {[%emt 0:00:21]} 14. h6 {[%emt 0:01:16]} Bh8 {[%emt 0:00:10]} 15. Qe2 {[%emt 0:08:09]} Ne8 {[%emt 0:01:15]} 16. Qe3 {[%emt 0:01:05]} Nd6 {[%emt 0:01:30]} 17. Qxc5 {[%emt 0:01:10]} Bd7 {[%emt 0:00:06]} 18. Be2 {[%emt 0:01:38]} Rfc8 {[%emt 0:01:13]} 19. Qb6 {[%emt 0:00:17]} Nc4 {[%emt 0:01:43]} 20. Bxc4 {[%emt 0:00:10]} Rxc4 {[%emt 0:00:04]} 21. f3 {[%emt 0:02:09]} Bf6 {[%emt 0:01:38]} 22. Nh3 {[%emt 0:03:23]} Rb4 {[%emt 0:01:03]} 23. d6 {[%emt 0:01:30]} Bh4+ {[%emt 0:00:41]} 24. Kf1 {[%emt 0:03:48]} Qe6 {[%emt 0:00:27]} 25. Qe3 {[%emt 0:01:06]} Rxb2 {[%emt 0:01:05]} 26. Kg1 {[%emt 0:03:59]} Rc8 {[%emt 0:02:00]} 27. Nd1 {[%emt 0:01:02]} Rbc2 {[%emt 0:00:35]} 28. Ng5 {[%emt 0:00:47]} Bxg5 {[%emt 0:00:08]} 29. Qxg5 {[%emt 0:00:04]} Qxd6 {[%emt 0:00:50]} 30. Nf2 {[%emt 0:00:16]} f6 {[%emt 0:00:13]} 31. Qe3 {[%emt 0:00:45]} R8c3 {[%emt 0:00:08]} 32. Qa7 {[%emt 0:00:14]} Rxf3 {[%emt 0:01:16]} 33. Rh2 {[%emt 0:00:21]} Rg3+ {[%emt 0:00:54]} 34. Kh1 {[%emt 0:00:14]} Qa3 {[%emt 0:00:28]} 35. Rg2 {[%emt 0:03:54]} Qf3 {[%emt 0:00:15]} 36. Rag1 {[%emt 0:00:12]} Rxg2 {[%emt 0:00:06]} 37. Rxg2 {[%emt 0:00:05]} Rc1+ {[%emt 0:00:06]} 38. Kh2 {[%emt 0:00:22]} Qf4+ {[%emt 0:00:09]} 39. Rg3 {[%emt 0:00:10]} Rc3 {[%emt 0:00:07]} 40. Nh1 {[%emt 0:00:00]} Rc2+ {[%emt 0:00:32]} 0-1

[Event "7th Fischer Memorial GM 2019"]
[Site "Anogia"]
[Date "2019.09.17"]
[Round "7.3"]
[White "Percivaldi, Martin"]
[Black "Kapnisis, Spyridon"]
[Result "1/2-1/2"]
[ECO "D37"]
[WhiteElo "2396"]
[BlackElo "2465"]
[Annotator "RC"]
[PlyCount "115"]
[EventDate "2019.09.11"]
[EventType "tourn"]
[EventCountry "GRE"]
[SourceTitle "playchess.com"]
[Source "ChessBase"]
[SourceQuality "1"]
[TimeControl "40/5400+30:1800+30"]

1. d4 {[%emt 0:00:48]} Nf6 {[%emt 0:00:00]} 2. Nf3 {[%emt 0:00:44]} e6 {[%emt 0:01:57]} 3. c4 {[%emt 0:00:45]} a6 {[%emt 0:01:19]} 4. Nc3 {[%emt 0:02:08]} d5 {[%emt 0:01:17]} 5. cxd5 {[%emt 0:01:32]} exd5 {[%emt 0:00:03]} 6. Bg5 {[%emt 0:00:14]} Be6 {[%emt 0:00:12]} 7. e3 {[%emt 0:00:29]} Nbd7 {[%emt 0:00:19]} 8. h3 {[%emt 0:02:25]} Be7 {[%emt 0:06:43]} 9. Bd3 {[%emt 0:01:53]} O-O {[%emt 0:02:45]} 10. O-O {[%emt 0:02:53]} c5 {[%emt 0:00:44]} 11. dxc5 {[%emt 0:05:37]} Nxc5 {[%emt 0:00:08]} 12. Nd4 {[%emt 0:00:10]} Re8 {[%emt 0:17:31]} 13. Rc1 {[%emt 0:06:05]} Qb6 {[%emt 0:06:44]} 14. Nxe6 {[%emt 0:09:03]} fxe6 {[%emt 0:01:09]} 15. b3 {[%emt 0:00:08]} Nxd3 {[%emt 0:06:06]} 16. Qxd3 {[%emt 0:00:14]} Rac8 {[%emt 0:05:00]} 17. Rc2 {[%emt 0:13:56]} Qa5 {[%emt 0:02:58]} 18. Bxf6 {[%emt 0:10:51]} Bxf6 {[%emt 0:03:37]} 19. Rfc1 {[%emt 0:01:03]} Rxc3 {[%emt 0:07:44]} 20. Rxc3 {[%emt 0:00:11]} Bxc3 {[%emt 0:00:05]} 21. Qxc3 {[%emt 0:00:12]} Qxc3 {[%emt 0:01:54]} 22. Rxc3 {[%emt 0:00:02]} Re7 {[%emt 0:00:31]} 23. Kf1 {[%emt 0:01:51]} Kf7 {[%emt 0:00:45]} 24. Ke2 {[%emt 0:08:43]} e5 {[%emt 0:00:39]} 25. Kd3 {[%emt 0:01:16]} Ke6 {[%emt 0:00:29]} 26. Rc8 {[%emt 0:00:31]} h6 {[%emt 0:02:50]} 27. f3 {[%emt 0:01:05]} Kd7 {[%emt 0:00:36]} 28. Rb8 {[%emt 0:00:29]} Kd6 {[%emt 0:02:06]} 29. g3 {[%emt 0:01:10]} g5 {[%emt 0:11:59]} 30. Rd8+ {[%emt 0:02:30]} Kc6 {[%emt 0:02:49]} 31. Rf8 {[%emt 0:01:20]} Re6 {[%emt 0:05:08]} 32. Rf7 {[%emt 0:01:00]} a5 {[%emt 0:01:14]} 33. a3 {[%emt 0:01:23]} b6 {[%emt 0:00:52]} 34. h4 {[%emt 0:04:57]} gxh4 {[%emt 0:00:40]} 35. gxh4 {[%emt 0:00:02]} Rg6 {[%emt 0:01:58]} 36. h5 {[%emt 0:02:45]} Rg3 {[%emt 0:00:14]} 37. f4 {[%emt 0:02:01]} exf4 {[%emt 0:01:41]} 38. Rxf4 {[%emt 0:00:24]} Rh3 {[%emt 0:02:04]} 39. Rf6+ {[%emt 0:00:55]} Kc5 {[%emt 0:00:07]} 40. Rxh6 {[%emt 0:00:00]} d4 {[%emt 0:00:00]} 41. b4+ {[%emt 0:20:34]} Kd5 {[%emt 0:01:17]} 42. Rxb6 {[%emt 0:00:23]} Rxe3+ {[%emt 0:00:10]} 43. Kd2 {[%emt 0:00:05]} Rxa3 {[%emt 0:00:52]} 44. h6 {[%emt 0:06:32]} axb4 {[%emt 0:02:07]} 45. Rb5+ {[%emt 0:00:20]} Kc4 {[%emt 0:04:57]} 46. Rh5 {[%emt 0:00:07]} Ra2+ {[%emt 0:00:06]} 47. Kc1 {[%emt 0:02:13]} Kc3 {[%emt 0:01:32]} 48. Kb1 {[%emt 0:01:01]} Rf2 {[%emt 0:01:50]} 49. Rh1 {[%emt 0:02:22]} Rf8 {[%emt 0:00:31]} 50. h7 {[%emt 0:00:31]} Rh8 {[%emt 0:00:06]} 51. Kc1 {[%emt 0:03:07]} b3 {[%emt 0:05:41]} 52. Kb1 {[%emt 0:00:31]} d3 {[%emt 0:01:12]} 53. Rh3 {[%emt 0:00:58]} b2 {[%emt 0:02:50]} 54. Rh6 {[%emt 0:00:24]} d2 {[%emt 0:01:31]} 55. Rc6+ {[%emt 0:00:45]} Kd3 {[%emt 0:01:27]} 56. Rd6+ {[%emt 0:00:08]} Ke2 {[%emt 0:00:47]} 57. Re6+ {[%emt 0:00:07]} Kd1 {[%emt 0:03:12]} 58. Rh6 {[%emt 0:00:20]} 1/2-1/2

[Event "7th Fischer Memorial GM 2019"]
[Site "Anogia"]
[Date "2019.09.17"]
[Round "7.4"]
[White "Mitsis, Georgios"]
[Black "Kaasen, Tor Fredrik"]
[Result "0-1"]
[ECO "E12"]
[WhiteElo "2374"]
[BlackElo "2405"]
[Annotator "ChessBase"]
[PlyCount "50"]
[EventDate "2019.09.11"]
[EventType "tourn"]
[EventCountry "GRE"]
[SourceTitle "playchess.com"]
[Source "ChessBase"]
[SourceQuality "1"]
[TimeControl "40/5400+30:1800+30"]

1. d4 {[%emt 0:07:37]} Nf6 {[%emt 0:00:00]} 2. c4 {[%emt 0:00:08]} e6 {[%emt 0:00:07]} 3. Nf3 {[%emt 0:00:15]} b6 {[%emt 0:00:28]} 4. a3 {[%emt 0:00:18]} Bb7 {[%emt 0:00:15]} 5. Nc3 {[%emt 0:00:12]} d5 {[%emt 0:00:15]} 6. Qc2 {[%emt 0:02:57]} dxc4 {[%emt 0:00:56]} 7. e4 {[%emt 0:15:42]} c5 {[%emt 0:00:19]} 8. d5 {[%emt 0:11:01]} exd5 {[%emt 0:00:43]} 9. e5 {[%emt 0:00:06]} Ne4 {[%emt 0:07:31]} 10. Nxe4 {[%emt 0:04:54]} dxe4 {[%emt 0:00:09]} 11. e6 {[%emt 0:35:54]} fxe6 {[%emt 0:07:46]} 12. Ng5 {[%emt 0:02:18]} Nc6 {[%emt 0:05:17]} 13. Qxc4 {[%emt 0:12:48]} Nd4 {[%emt 0:03:24]} 14. Be3 {[%emt 0:01:14]} Bd5 {[%emt 0:08:20]} 15. Qc3 {[%emt 0:00:14]} Qd7 {[%emt 0:00:28]} 16. O-O-O {[%emt 0:01:17]} Be7 {[%emt 0:01:16]} 17. Kb1 {[%emt 0:00:59]} O-O {[%emt 0:00:54]} 18. Bc4 {[%emt 0:00:26]} b5 {[%emt 0:02:18]} 19. Bxd5 {[%emt 0:00:27]} exd5 {[%emt 0:00:16]} 20. Nh3 {[%emt 0:00:35]} Ne6 {[%emt 0:00:35]} 21. Qe5 {[%emt 0:00:15]} Rad8 {[%emt 0:00:08]} 22. g4 {[%emt 0:00:37]} Qd6 {[%emt 0:00:55]} 23. Qh5 {[%emt 0:00:38]} d4 {[%emt 0:01:01]} 24. g5 {[%emt 0:00:09]} Qe5 {[%emt 0:00:37]} 25. Bc1 {[%emt 0:00:05]} Rf3 {[%emt 0:01:29]} 0-1

[Event "7th Fischer Memorial GM 2019"]
[Site "Anogia"]
[Date "2019.09.18"]
[Round "8.2"]
[White "Kaasen, Tor Fredrik"]
[Black "Stoyanov, Tsvetan"]
[Result "1-0"]
[ECO "C92"]
[WhiteElo "2405"]
[BlackElo "2373"]
[Annotator "NA"]
[PlyCount "117"]
[EventDate "2019.09.11"]
[EventType "tourn"]
[EventCountry "GRE"]
[SourceTitle "playchess.com"]
[Source "ChessBase"]
[SourceQuality "1"]
[TimeControl "40/5400+30:1800+30"]

1. e4 {[%emt 0:00:00]} e5 {[%emt 0:04:26]} 2. Nf3 {[%emt 0:00:06]} Nc6 {[%emt 0:00:07]} 3. Bb5 {[%emt 0:00:28]} a6 {[%emt 0:00:13]} 4. Ba4 {[%emt 0:00:07]} Nf6 {[%emt 0:00:11]} 5. O-O {[%emt 0:00:15]} Be7 {[%emt 0:00:04]} 6. Re1 {[%emt 0:00:20]} b5 {[%emt 0:00:20]} 7. Bb3 {[%emt 0:00:06]} d6 {[%emt 0:00:14]} 8. c3 {[%emt 0:00:14]} O-O {[%emt 0:00:42]} 9. h3 {[%emt 0:00:19]} Be6 {[%emt 0:00:19]} 10. d4 {[%emt 0:09:59]} Bxb3 {[%emt 0:00:18]} 11. Qxb3 {[%emt 0:01:42]} Qd7 {[%emt 0:00:26]} 12. Bg5 {[%emt 0:03:57]} h6 {[%emt 0:12:37]} 13. Bh4 {[%emt 0:00:45]} Na5 {[%emt 0:02:53]} 14. Qd1 {[%emt 0:07:37]} Qe6 {[%emt 0:07:05]} 15. Nbd2 {[%emt 0:03:01]} c5 {[%emt 0:07:22]} 16. Bg3 {[%emt 0:06:54]} Nd7 {[%emt 0:05:54]} 17. b4 {[%emt 0:07:08]} cxb4 {[%emt 0:02:27]} 18. cxb4 {[%emt 0:00:12]} Nb7 {[%emt 0:00:44]} 19. d5 {[%emt 0:02:22]} Qg6 {[%emt 0:00:38]} 20. Rc1 {[%emt 0:02:41]} Rfc8 {[%emt 0:18:35]} 21. Qb3 {[%emt 0:01:16]} Bg5 {[%emt 0:06:21]} 22. Rc6 {[%emt 0:06:52]} Nd8 {[%emt 0:08:59]} 23. Rc2 {[%emt 0:06:26]} f5 {[%emt 0:05:31]} 24. Rec1 {[%emt 0:10:23]} Rxc2 {[%emt 0:07:31]} 25. Qxc2 {[%emt 0:00:08]} f4 {[%emt 0:00:04]} 26. Bh4 {[%emt 0:00:53]} Nb6 {[%emt 0:05:45]} 27. Qd3 {[%emt 0:02:39]} Bxh4 {[%emt 0:01:59]} 28. Nxh4 {[%emt 0:00:09]} Qf6 {[%emt 0:00:25]} 29. Nf5 {[%emt 0:01:09]} Ra7 {[%emt 0:00:28]} 30. Qa3 {[%emt 0:06:46]} Kh7 {[%emt 0:01:40]} 31. Qa5 {[%emt 0:00:08]} Na8 {[%emt 0:00:37]} 32. Rc8 {[%emt 0:04:31]} Nb7 {[%emt 0:00:31]} 33. Rxa8 {[%emt 0:00:32]} Nxa5 {[%emt 0:00:29]} 34. Rxa7 {[%emt 0:00:10]} Nc4 {[%emt 0:00:02]} 35. Nf3 {[%emt 0:02:35]} Kg8 {[%emt 0:00:33]} 36. Rxg7+ {[%emt 0:02:37]} Qxg7 {[%emt 0:00:50]} 37. Nxg7 {[%emt 0:00:05]} Kxg7 {[%emt 0:00:04]} 38. Nh4 {[%emt 0:00:19]} Kf6 {[%emt 0:00:57]} 39. Nf5 {[%emt 0:01:09]} h5 {[%emt 0:00:28]} 40. f3 {[%emt 0:00:00]} Kf7 {[%emt 0:00:00]} 41. Kf2 {[%emt 0:06:12]} Kf6 {[%emt 0:01:59]} 42. Ke2 {[%emt 0:02:35]} Kf7 {[%emt 0:04:29]} 43. Kd3 {[%emt 0:00:15]} Kf6 {[%emt 0:01:32]} 44. Kc3 {[%emt 0:00:34]} Kf7 {[%emt 0:08:43]} 45. a4 {[%emt 0:02:46]} Kf6 {[%emt 0:01:02]} 46. a5 {[%emt 0:01:53]} Kf7 {[%emt 0:04:31]} 47. Kd3 {[%emt 0:00:25]} Kf6 {[%emt 0:00:23]} 48. Ke2 {[%emt 0:00:07]} Kf7 {[%emt 0:02:20]} 49. Ke1 {[%emt 0:00:29]} Kf6 {[%emt 0:00:29]} 50. Kf2 {[%emt 0:00:11]} Kf7 {[%emt 0:01:48]} 51. g4 {[%emt 0:05:27]} Kg6 {[%emt 0:06:32]} 52. Ne7+ {[%emt 0:01:20]} Kg5 {[%emt 0:01:01]} 53. Nc6 {[%emt 0:02:22]} hxg4 {[%emt 0:00:54]} 54. hxg4 {[%emt 0:00:12]} Kh4 {[%emt 0:00:23]} 55. Nb8 {[%emt 0:00:35]} Nxa5 {[%emt 0:00:30]} 56. bxa5 {[%emt 0:00:24]} b4 {[%emt 0:00:02]} 57. Ke2 {[%emt 0:00:13]} b3 {[%emt 0:00:03]} 58. Kd2 {[%emt 0:00:09]} Kg3 {[%emt 0:00:53]} 59. g5 {[%emt 0:00:56]} 1-0

[Event "7th Fischer Memorial GM 2019"]
[Site "Anogia"]
[Date "2019.09.18"]
[Round "8.3"]
[White "Kapnisis, Spyridon"]
[Black "Mitsis, Georgios"]
[Result "1/2-1/2"]
[ECO "C15"]
[WhiteElo "2465"]
[BlackElo "2374"]
[Annotator "ChessBase"]
[PlyCount "107"]
[EventDate "2019.09.11"]
[EventType "tourn"]
[EventCountry "GRE"]
[SourceTitle "playchess.com"]
[Source "ChessBase"]
[SourceQuality "1"]
[TimeControl "40/5400+30:1800+30"]

1. e4 {[%emt 0:00:00]} e6 {[%emt 0:02:46]} 2. d4 {[%emt 0:00:00]} d5 {[%emt 0:00:28]} 3. Nc3 {[%emt 0:00:08]} Bb4 {[%emt 0:00:26]} 4. a3 {[%emt 0:00:36]} Bxc3+ {[%emt 0:00:34]} 5. bxc3 {[%emt 0:00:03]} dxe4 {[%emt 0:04:44]} 6. Qg4 {[%emt 0:00:57]} Nf6 {[%emt 0:00:25]} 7. Qxg7 {[%emt 0:00:07]} Rg8 {[%emt 0:00:08]} 8. Qh6 {[%emt 0:00:05]} Rg6 {[%emt 0:04:31]} 9. Qh4 {[%emt 0:00:39]} c5 {[%emt 0:06:55]} 10. Ne2 {[%emt 0:00:56]} Nc6 {[%emt 0:02:08]} 11. dxc5 {[%emt 0:08:27]} Rg4 {[%emt 0:06:39]} 12. Qh6 {[%emt 0:00:57]} Rg6 {[%emt 0:00:33]} 13. Qh4 {[%emt 0:18:25]} Rg4 {[%emt 0:00:26]} 14. Qh6 {[%emt 0:00:03]} Rg6 {[%emt 0:00:06]} 15. Qd2 {[%emt 0:04:11]} Qa5 {[%emt 0:02:19]} 16. Nd4 {[%emt 0:00:51]} Bd7 {[%emt 0:11:04]} 17. Nb5 {[%emt 0:04:25]} Kf8 {[%emt 0:04:28]} 18. h4 {[%emt 0:06:12]} h5 {[%emt 0:06:56]} 19. g4 {[%emt 0:19:11]} Kg8 {[%emt 0:07:51]} 20. gxh5 {[%emt 0:08:57]} Ne5 {[%emt 0:00:43]} 21. Nd4 {[%emt 0:00:13]} Nxh5 {[%emt 0:00:58]} 22. Bb2 {[%emt 0:00:32]} Bc6 {[%emt 0:04:02]} 23. O-O-O {[%emt 0:04:07]} e3 {[%emt 0:12:23]} 24. Qxe3 {[%emt 0:01:18]} Ng4 {[%emt 0:00:20]} 25. Nxc6 {[%emt 0:00:27]} bxc6 {[%emt 0:00:04]} 26. Qd4 {[%emt 0:05:08]} e5 {[%emt 0:01:16]} 27. Qd7 {[%emt 0:00:31]} Qxc5 {[%emt 0:02:22]} 28. Bd3 {[%emt 0:02:06]} Rg7 {[%emt 0:02:21]} 29. Be2 {[%emt 0:10:22]} Qxf2 {[%emt 0:08:20]} 30. Bxg4 {[%emt 0:00:05]} Qf4+ {[%emt 0:00:04]} 31. Kb1 {[%emt 0:00:04]} Qxg4 {[%emt 0:00:06]} 32. Qxc6 {[%emt 0:00:24]} Rc8 {[%emt 0:00:19]} 33. Qd5 {[%emt 0:00:24]} Re8 {[%emt 0:05:46]} 34. c4 {[%emt 0:00:24]} Nf6 {[%emt 0:00:08]} 35. Qc6 {[%emt 0:00:59]} Re6 {[%emt 0:00:52]} 36. Qa8+ {[%emt 0:01:26]} Kh7 {[%emt 0:00:09]} 37. Qxa7 {[%emt 0:01:49]} Qxc4 {[%emt 0:00:09]} 38. h5 {[%emt 0:00:47]} Rc6 {[%emt 0:00:30]} 39. Qf2 {[%emt 0:01:46]} Rg5 {[%emt 0:00:33]} 40. Rhg1 {[%emt 0:00:00]} Ne4 {[%emt 0:00:00]} 41. Qh2 {[%emt 0:06:58]} Rxg1 {[%emt 0:04:51]} 42. Rxg1 {[%emt 0:01:06]} Nc3+ {[%emt 0:00:15]} 43. Bxc3 {[%emt 0:00:08]} Qxc3 {[%emt 0:00:09]} 44. Qf2 {[%emt 0:00:31]} Kh8 {[%emt 0:02:10]} 45. Rg3 {[%emt 0:02:36]} Qc5 {[%emt 0:04:27]} 46. Qf5 {[%emt 0:03:09]} Rb6+ {[%emt 0:04:06]} 47. Kc1 {[%emt 0:01:46]} Rc6 {[%emt 0:00:55]} 48. Rb3 {[%emt 0:02:31]} Qg1+ {[%emt 0:00:12]} 49. Kb2 {[%emt 0:00:04]} Qd4+ {[%emt 0:00:07]} 50. Ka2 {[%emt 0:00:21]} Qd5 {[%emt 0:00:10]} 51. Kb1 {[%emt 0:12:07]} Qd1+ {[%emt 0:00:09]} 52. Kb2 {[%emt 0:00:04]} Qd4+ {[%emt 0:00:10]} 53. Ka2 {[%emt 0:00:38]} Qd5 {[%emt 0:00:07]} 54. Kb2 {[%emt 0:03:33]} 1/2-1/2

[Event "7th Fischer Memorial GM 2019"]
[Site "Anogia"]
[Date "2019.09.18"]
[Round "8.4"]
[White "Akash Pc, Iyer"]
[Black "Percivaldi, Martin"]
[Result "0-1"]
[ECO "E04"]
[WhiteElo "2431"]
[BlackElo "2396"]
[Annotator "NA"]
[PlyCount "118"]
[EventDate "2019.09.11"]
[EventType "tourn"]
[EventCountry "GRE"]
[SourceTitle "playchess.com"]
[Source "ChessBase"]
[SourceQuality "1"]
[TimeControl "40/5400+30:1800+30"]

1. d4 {[%emt 0:00:00]} d5 {[%emt 0:00:00]} 2. c4 {[%emt 0:00:04]} c6 {[%emt 0:00:06]} 3. Nf3 {[%emt 0:00:17]} Nf6 {[%emt 0:00:17]} 4. Nc3 {[%emt 0:01:34]} e6 {[%emt 0:00:53]} 5. g3 {[%emt 0:00:35]} dxc4 {[%emt 0:01:27]} 6. Bg2 {[%emt 0:00:06]} b5 {[%emt 0:00:14]} 7. Ne5 {[%emt 0:00:47]} a6 {[%emt 0:02:57]} 8. a4 {[%emt 0:02:19]} Bb7 {[%emt 0:00:00]} 9. O-O {[%emt 0:00:33]} Qc8 {[%emt 0:00:00]} 10. Bg5 {[%emt 0:06:09]} Nbd7 {[%emt 0:01:22]} 11. Nxd7 {[%emt 0:22:30]} Nxd7 {[%emt 0:05:29]} 12. Ne4 {[%emt 0:01:29]} f5 {[%emt 0:09:07]} 13. Nc3 {[%emt 0:01:58]} h6 {[%emt 0:00:11]} 14. Bf4 {[%emt 0:00:34]} g5 {[%emt 0:08:56]} 15. Bd2 {[%emt 0:15:11]} Bg7 {[%emt 0:01:20]} 16. e4 {[%emt 0:01:39]} O-O {[%emt 0:02:12]} 17. exf5 {[%emt 0:01:10]} exf5 {[%emt 0:00:49]} 18. Re1 {[%emt 0:00:09]} Rf7 {[%emt 0:06:44]} 19. Qh5 {[%emt 0:07:30]} b4 {[%emt 0:02:40]} 20. Nd1 {[%emt 0:03:38]} c5 {[%emt 0:01:57]} 21. Bxb7 {[%emt 0:01:00]} Qxb7 {[%emt 0:00:32]} 22. Ne3 {[%emt 0:00:07]} c3 {[%emt 0:17:47]} 23. bxc3 {[%emt 0:08:18]} bxc3 {[%emt 0:00:15]} 24. Bxc3 {[%emt 0:00:11]} cxd4 {[%emt 0:00:10]} 25. Bxd4 {[%emt 0:00:14]} Bf6 {[%emt 0:00:09]} 26. Be5 Bxe5 {[%emt 0:00:31]} 27. Qg6+ {[%emt 0:00:37]} Bg7 {[%emt 0:00:41]} 28. Nxf5 {[%emt 0:00:07]} Rxf5 {[%emt 0:00:17]} 29. Qxf5 {[%emt 0:01:13]} Rf8 {[%emt 0:00:52]} 30. Qe6+ {[%emt 0:01:04]} Kh8 {[%emt 0:00:57]} 31. Rad1 {[%emt 0:01:28]} Nc5 {[%emt 0:05:54]} 32. Qc4 {[%emt 0:00:34]} Qb6 {[%emt 0:00:45]} 33. Rb1 {[%emt 0:00:29]} Qa7 {[%emt 0:00:57]} 34. Re2 {[%emt 0:00:28]} Nd7 {[%emt 0:06:09]} 35. Qe6 {[%emt 0:03:09]} Qd4 {[%emt 0:15:51]} 36. Qe4 {[%emt 0:02:55]} Qd6 {[%emt 0:00:11]} 37. Qe6 {[%emt 0:00:21]} Qd4 {[%emt 0:00:23]} 38. Qe4 {[%emt 0:00:06]} Qc3 {[%emt 0:03:53]} 39. Re3 {[%emt 0:01:49]} Qf6 {[%emt 0:00:34]} 40. Re2 {[%emt 0:00:56]} Ne5 {[%emt 0:00:31]} 41. h3 {[%emt 0:00:58]} Nf3+ {[%emt 0:02:41]} 42. Kg2 {[%emt 0:00:01]} h5 {[%emt 0:03:59]} 43. Qe6 {[%emt 0:02:05]} Qd4 {[%emt 0:01:45]} 44. Qe4 {[%emt 0:00:06]} Qxe4 {[%emt 0:00:37]} 45. Rxe4 {[%emt 0:00:06]} Nd2 {[%emt 0:00:04]} 46. Rbe1 {[%emt 0:00:13]} Nxe4 {[%emt 0:00:06]} 47. Rxe4 {[%emt 0:00:02]} Kh7 {[%emt 0:03:08]} 48. f3 {[%emt 0:00:46]} Kg6 {[%emt 0:00:17]} 49. h4 {[%emt 0:00:08]} gxh4 {[%emt 0:01:44]} 50. Rxh4 {[%emt 0:00:01]} Rc8 {[%emt 0:02:56]} 51. Re4 {[%emt 0:00:34]} Rc6 {[%emt 0:01:54]} 52. Kh3 {[%emt 0:00:21]} Bf6 {[%emt 0:00:07]} 53. Rb4 {[%emt 0:00:53]} Kg5 {[%emt 0:02:14]} 54. Re4 {[%emt 0:00:30]} Kf5 {[%emt 0:00:25]} 55. Kg2 {[%emt 0:01:43]} Rc2+ {[%emt 0:00:15]} 56. Kh3 {[%emt 0:00:12]} Rf2 {[%emt 0:03:13]} 57. Rf4+ {[%emt 0:00:08]} Kg5 {[%emt 0:00:53]} 58. Rc4 {[%emt 0:04:03]} Rxf3 {[%emt 0:00:29]} 59. Rc6 {[%emt 0:00:08]} Be5 {[%emt 0:01:46]} 0-1

[Event "7th Fischer Memorial GM 2019"]
[Site "Anogia"]
[Date "2019.09.18"]
[Round "8.5"]
[White "Gretarsson, Helgi Ass"]
[Black "Storey, Charles H"]
[Result "1-0"]
[ECO "E65"]
[WhiteElo "2410"]
[BlackElo "2282"]
[Annotator "NA"]
[PlyCount "82"]
[EventDate "2019.09.11"]
[EventType "tourn"]
[EventCountry "GRE"]
[SourceTitle "playchess.com"]
[Source "ChessBase"]
[SourceQuality "1"]
[TimeControl "40/5400+30:1800+30"]

1. d4 {[%emt 0:00:00]} Nf6 {[%emt 0:00:10]} 2. c4 {[%emt 0:01:04]} g6 {[%emt 0:00:09]} 3. Nc3 {[%emt 0:00:05]} Bg7 {[%emt 0:00:06]} 4. Nf3 {[%emt 0:04:15]} d6 {[%emt 0:01:16]} 5. g3 {[%emt 0:00:07]} Na6 {[%emt 0:05:59]} 6. Bg2 {[%emt 0:00:08]} c5 {[%emt 0:00:13]} 7. O-O {[%emt 0:00:08]} O-O {[%emt 0:02:20]} 8. h3 {[%emt 0:05:19]} Bd7 {[%emt 0:03:01]} 9. b3 {[%emt 0:03:45]} Qc8 {[%emt 0:01:53]} 10. Kh2 {[%emt 0:00:24]} cxd4 {[%emt 0:04:31]} 11. Nxd4 {[%emt 0:00:10]} Nc7 {[%emt 0:00:15]} 12. Be3 {[%emt 0:02:07]} Ne6 {[%emt 0:05:54]} 13. Rc1 {[%emt 0:00:33]} Bc6 {[%emt 0:06:02]} 14. Nxc6 {[%emt 0:06:26]} bxc6 {[%emt 0:00:04]} 15. b4 {[%emt 0:00:12]} Rb8 {[%emt 0:08:11]} 16. Qa4 {[%emt 0:01:43]} c5 {[%emt 0:03:59]} 17. bxc5 {[%emt 0:00:42]} Nxc5 {[%emt 0:02:50]} 18. Qxa7 {[%emt 0:00:25]} Qe6 {[%emt 0:03:12]} 19. Nd5 {[%emt 0:35:08]} Nxd5 {[%emt 0:02:19]} 20. Bxd5 {[%emt 0:00:18]} Qe5 {[%emt 0:00:17]} 21. Bf4 {[%emt 0:00:46]} Qf6 {[%emt 0:02:28]} 22. Rb1 {[%emt 0:01:54]} Rbd8 {[%emt 0:05:08]} 23. Rfd1 {[%emt 0:10:04]} h5 {[%emt 0:03:58]} 24. h4 {[%emt 0:01:14]} Kh7 {[%emt 0:01:26]} 25. Be3 {[%emt 0:04:58]} Rd7 {[%emt 0:08:53]} 26. Qa5 {[%emt 0:01:45]} Rc8 {[%emt 0:00:43]} 27. Kg2 {[%emt 0:02:46]} Qf5 {[%emt 0:05:42]} 28. Qb5 {[%emt 0:01:53]} Ra7 {[%emt 0:01:00]} 29. a4 {[%emt 0:00:16]} Bc3 {[%emt 0:05:37]} 30. Bxc5 {[%emt 0:08:51]} Rxc5 {[%emt 0:00:43]} 31. Qe8 {[%emt 0:00:21]} e6 {[%emt 0:01:38]} 32. Qb8 {[%emt 0:02:16]} Rcc7 {[%emt 0:07:30]} 33. Bf3 {[%emt 0:00:59]} Be5 {[%emt 0:03:47]} 34. Rd3 {[%emt 0:00:36]} Qf6 {[%emt 0:00:48]} 35. Bb7 {[%emt 0:02:30]} Bd4 {[%emt 0:04:04]} 36. Rxd4 {[%emt 0:01:33]} Qxd4 {[%emt 0:01:18]} 37. Qxc7 {[%emt 0:00:05]} Kg7 {[%emt 0:00:15]} 38. a5 {[%emt 0:01:12]} d5 {[%emt 0:00:06]} 39. Qb6 {[%emt 0:00:13]} Qe4+ {[%emt 0:00:22]} 40. Kg1 {[%emt 0:00:00]} Rxa5 {[%emt 0:00:00]} 41. Qb2+ {[%emt 0:02:45]} d4 {[%emt 0:00:16]} 1-0